Cogmind - Beta 11 @@@ ROGUE MODE // 2022.04.20 @ 18:57:46 Player: Benkyo Result: Destroyed by G-34 Mercenary with Small Laser Performance ------------- Evolutions (0) 0 Regions Visited (1) 200 Robots Destroyed (21) 105 Value Destroyed (406) 406 Prototype IDs (0) 0 Alien Tech Used (0) 0 Bonus (0) 0 TOTAL SCORE: 711 Bonus ------- None Cogmind --------- Core Integrity 0/250 Matter 277/300 Energy 249/250 System Corruption 0% Temperature Hot (293) Movement Treading (240) Ox1 Location -10/Materials Parts ------- > --- POWER (1) -------- Ion Engine > --- PROPULSION (2) --- Light Treads Light Treads > --- UTILITY (2) ------ High-capacity Storage Unit Signal Interpreter > --- WEAPON (2) ------- Medium Laser Light Assault Rifle > --- INVENTORY (20) --- Ion Engine Ion Engine Aluminum Leg Wheel Wheel Compact Wheel Compact Wheel Compact Wheel Heat Sink High-capacity Matter Pod (200) Visual Processing Unit Sensor Array Transport Network Coupler Light Armor Plating EM Pulse Gun EM Pulse Gun Light Assault Rifle Mining Laser Peak State ------------ > --- POWER ------------ Ion Engine > --- PROPULSION ------- Wheel Compact Wheel > --- UTILITY ---------- High-capacity Storage Unit Improved Terrain Scanner > --- WEAPON ----------- Medium Laser Medium Laser > --- INVENTORY -------- Light Ion Engine Light Treads Light Treads Aluminum Leg Compact Wheel Compact Wheel EM Pulse Gun EM Pulse Gun Light Assault Rifle Mining Laser [Rating: 10] Favorites ----------- Power Ion Engine Engine Ion Engine Propulsion Light Treads Treads Light Treads Wheel Compact Wheel Utility High-capacity Storage Unit Device Improved Terrain Scanner Storage High-capacity Storage Unit Processor Signal Interpreter Weapon Light Assault Rifle Energy Gun Medium Laser Ballistic Gun Light Assault Rifle Build | -11 -10 ------- Run | Scr Mat Slots Evolved . | . . Power . | . . Propulsion . | . . Utility . | . . Weapon . | . . Parts Attached 33 | 6 27 Power 4 | 1 3 Engine 4 | 1 3 Core . | . . Reactor . | . . Propulsion 18 | 2 16 Treads 9 | . 9 Leg . | . . Wheel 9 | 2 7 Hover . | . . Flight . | . . Utility 4 | 2 2 Device 1 | 1 . Storage 2 | 1 1 Processor 1 | . 1 Hackware . | . . Protection . | . . Artifact . | . . Weapon 7 | 1 6 Energy Gun 5 | 1 4 Energy Cannon . | . . Ballistic Gun 2 | . 2 Ballistic Cannon . | . . Launcher . | . . Special Weapon . | . . Impact Weapon . | . . Slashing Weapon . | . . Piercing Weapon . | . . Special Melee Weapon . | . . Unidentified Prototypes . | . . Parts Lost 6 | . 6 Power 2 | . 2 Propulsion 1 | . 1 Utility 1 | . 1 Weapon 2 | . 2 Highest Loss Streak 2 | . 2 To Critical Strikes . | . . Average Slot Usage (%) 92 | . 92 Engine 12 | . 12 Treads 20 | . 20 Wheel 7 | . 7 Device 1 | . 1 Storage 14 | . 14 Processor 7 | . 7 Energy Gun 12 | . 12 Ballistic Gun 15 | . 15 Naked Turns . | . . Heaviest Build 50 | 13 50 Greatest Support 40 | 32 40 Greatest Overweight (x) 1 | . 1 Average Overweight (x) . | . . Largest Inventory Capacity 20 | 8 20 Average Capacity 18 | 7 19 Most Carried 20 | 8 20 Average Carried 14 | 5 15 Final Capacity 20 | 8 20 Final Carried 18 | 8 18 Class Distribution -------------------- 81% | Mutant 18% | Scavenger-Mutant Dominant Class ---------------- Mutant | -10/Materials Resources | -11 -10 ----------- Run | Scr Mat Matter Collected 794 | 239 555 Remotely . | . . Salvage Created 777 | 76 701 Parts 45 | 7 38 Haulers Intercepted 2 | . 2 Recyclers Shooed 2 | . 2 Parts Field Recycled . | . . Retrieved Matter . | . . Parts Self-Destructed . | . . Prevented . | . . Kills | -11 -10 ------- Run | Scr Mat Combat Hostiles Destroyed 12 | . 12 Guns 12 | . 12 Classes Destroyed 7 | 2 5 Worker 2 | . 2 Tunneler 1 | 1 . Hauler 2 | . 2 Recycler 2 | 1 1 Watcher 2 | . 2 Swarmer 3 | . 3 Grunt 9 | . 9 Best Kill Streak 3 | 1 3 Combat Bots Only 3 | . 3 Max Kills in Single Turn 1 | 1 1 Gunslinging . | . . Exploded . | . . Melee . | . . Uniques/NPCs Destroyed . | . . Combat | -11 -10 -------- Run | Scr Mat Damage Taken 951 | . 951 Core 250 | . 250 Absorbed by Shields . | . . Core Remaining (%) 100 | 100 . Volleys Fired 99 | 10 89 Largest 2 | 1 2 Hottest 100 | 50 100 Shots Fired 188 | 10 178 Gun 188 | 10 178 Cannon . | . . Launcher . | . . Special . | . . Kinetic 108 | . 108 Thermal 80 | 10 70 Explosive . | . . Electromagnetic . | . . Robot Hit Streak 7 | 3 7 Robot Miss Streak 5 | 3 5 Penetration Max . | . . Secondary Targets . | . . Shots Hit Robots 117 | 6 111 Core Hits 44 | 3 41 Critical Kills . | . . Critical Parts Destroyed . | . . Critical Strikes 7 | 2 5 Burn 7 | 2 5 Melee Attacks . | . . Impact . | . . Slashing . | . . Piercing . | . . Sneak Attacks . | . . Combat Hostiles . | . . Follow-up Attacks . | . . Damage Inflicted 1228 | 86 1142 Guns 1228 | 86 1142 Cannons . | . . Explosions . | . . Melee . | . . Ramming . | . . Kinetic 564 | . 564 Thermal 664 | 86 578 Explosive . | . . Electromagnetic . | . . Impact . | . . Slashing . | . . Piercing . | . . Highest Corruption . | . . Average Corruption . | . . Corruption Purged . | . . Corruption Blocked . | . . Overload Shots . | . . Overflow Damage . | . . Projectiles . | . . Explosions . | . . Melee . | . . Knockbacks . | . . Impact . | . . Kinetic . | . . Secondary . | . . Self-Inflicted Damage . | . . Shots . | . . Rammed . | . . Targets Rammed . | . . Kicked . | . . Crushed . | . . Highest Temperature 324 | 80 324 Average Temperature 104 | 39 110 Received Heat Transfer 543 | . 543 Siege Activations . | . . Robots Corrupted . | . . Combat Hostiles . | . . Parts Fried . | . . Impact Corruptions . | . . Robots Melted . | . . Combat Hostiles . | . . Parts Melted 4 | . 4 Heat Transferred 2479 | 407 2072 Parts Sabotaged . | . . Parts Stolen . | . . Parts Stripped . | . . Power Chain Reactions . | . . Missiles Intercepted . | . . Alert | -11 -10 ------- Run | Scr Mat Peak Influence 200 | 10 200 Initial 6 | . 6 Average 81 | 3 88 Maximum Alert Level 1 | . 1 Low Security (%) 96 | 100 96 Level 1 3 | . 3 Level 2 . | . . Level 3 . | . . Level 4 . | . . Level 5 . | . . High Security . | . . Max Security . | . . Squads Dispatched 5 | . 5 Investigation 1 | . 1 Extermination . | . . Reinforcement 4 | . 4 Assault . | . . Garrison . | . . Intercept . | . . Searches Triggered . | . . Construction Impeded . | . . Haulers Reinforced . | . . Active Scanning Responses . | . . Cargo Convoy Interrupts . | . . Stealth | -11 -10 --------- Run | Scr Mat Distress Signals . | . . Communications Jammed . | . . Distress Signals . | . . Times Spotted 33 | . 33 Peak Tracking Total 3 | . 3 Tactical Retreats 1 | . 1 Traps | -11 -10 ------- Run | Scr Mat Traps Triggered 1 | . 1 Indirectly . | . . Trap Hack Attempts . | . . Triggered . | . . Disarmed . | . . Reprogrammed . | . . Reused . | . . Traps Extracted . | . . Installed . | . . Triggered . | . . Machines | -11 -10 ---------- Run | Scr Mat Machines Disabled . | . . Max in Single Turn . | . . Machines Sabotaged . | . . Garrisons Compromised . | . . Overloaded Fab Kills . | . . Hacking | -11 -10 --------- Run | Scr Mat Machines Accessed 4 | . 4 Terminals 3 | . 3 Fabricators . | . . Repair Stations . | . . Recycling Units 1 | . 1 Scanalyzers . | . . Garrison Access . | . . Total Hacks 13 | . 13 Successful 4 | . 4 Failed 9 | . 9 Catastrophic 2 | . 2 Database Lockouts . | . . Manual 11 | . 11 Terminals 11 | . 11 Fabricators . | . . Repair Stations . | . . Recycling Units 2 | . 2 Scanalyzers . | . . Garrison Access . | . . Terminal Hacks 1 | . 1 Locate Traps 1 | . 1 Fabricator Hacks . | . . Repair Station Hacks . | . . Recycling Unit Hacks . | . . Scanalyzer . | . . Garrison Access Hacks . | . . Unauthorized Hacks 3 | . 3 Terminals 2 | . 2 Botnet 2 | . 2 Fabricators . | . . Repair Stations . | . . Recycling Units 1 | . 1 Mask 1 | . 1 Scanalyzers . | . . Garrison Access . | . . Data Cores Recovered . | . . Used . | . . Hacking Detections 4 | . 4 Full Trace Events 1 | . 1 Feedback Events . | . . Feedback Blocked . | . . Robot Schematics Acquired . | . . Robots Built . | . . Authchips . | . . Time . | . . Total Robot Build Rating . | . . Part Schematics Acquired . | . . Parts Built . | . . Authchips . | . . Time . | . . Total Part Build Rating . | . . Parts Repaired . | . . Time . | . . Parts Recycled . | . . Recycled Matter . | . . Retrieved Matter . | . . Retrieved Components . | . . Parts Scanalyzed . | . . Part Schematics Acquired . | . . Parts Damaged . | . . Bothacking | -11 -10 ------------ Run | Scr Mat Used RIF Installer . | . . Robots Hacked . | . . Non-combat . | . . Combat . | . . Robot Hacks Applied . | . . Relay Couplers Released . | . . Fabnet Peak Effective % . | . . Robots Rewired . | . . Allies Hacked . | . . Hacks Repelled . | . . Allies | -11 -10 -------- Run | Scr Mat Total Allies . | . . Largest Group . | . . Highest-Rated Group . | . . Highest-Rated Ally . | . . Total Orders . | . . Ally Attacks . | . . Total Damage . | . . Kills . | . . Allies Corrupted . | . . Allies Melted . | . . Intel | -11 -10 ------- Run | Scr Mat Robot Analysis Total . | . . Derelict Logs Recovered . | . . Drone Launches . | . . Drone Recoveries . | . . Exploration | -11 -10 ------------- Run | Scr Mat Turns Passed 1330 | 105 1225 Spaces Moved 552 | 70 482 Core 12 | 12 . Treads 284 | . 284 Legs . | . . Wheels 256 | 58 198 Hover . | . . Flight . | . . Fastest Speed 50 | 50 100 Average Speed 172 | 91 184 Slowest Speed 240 | 100 240 Overloaded Moves . | . . Propulsion Burnouts . | . . Robots Hopped . | . . Cave-ins Triggered . | . . Exploration Rate (%) 44 | 6 82 Regions Visited 1 Branch Regions . Pre-discovered Areas . | . . Known Exits Taken . | . . Unknown Exits Taken 1 | 1 . Scrap Searched . | . . Spaces Dug . | . . Terrain Destroyed . | . . Melee . | . . Projectile . | . . AOE . | . . Terrain Rammed . | . . Walls Destroyed . | . . Machines Disabled . | . . Actions | -11 -10 --------- Run | Scr Mat Total 753 | 101 652 Wait 37 | . 37 Move 551 | 69 482 Hop . | . . Pick Up 30 | 15 15 Fast Attach 2 | . 2 Attach 11 | 6 5 Detach . | . . Swap 20 | . 20 Drop 3 | 1 2 Fire 99 | 10 89 Melee . | . . Ram . | . . Kick . | . . Crush . | . . Escape Stasis . | . . Rewire . | . . Trap . | . . Miscellaneous . | . . Route ------- -11/Scrapyard -10/Materials (discovered 3 exits: *Mat x2 / [*Min]) History --------- Turn | Location | Event 20 | -11/Scrapyard | Discovered new exit (range 15) 106 | -11/Scrapyard | Entered Materials 562 | -10/Materials | Discovered new exit (range 16) 699 | -10/Materials | Identified exit to Materials 795 | -10/Materials | Build established: Mutant 816 | -10/Materials | Core integrity fell below 50% 1186 | -10/Materials | Discovered new exit (range 13) 1285 | -10/Materials | Discovered exit to Materials (range 7) 1324 | -10/Materials | Core integrity fell below 20% 1331 | -10/Materials | Destroyed by G-34 Mercenary with Small Laser Last Messages --------------- 01152_ G-34 Mercenary destroyed. 01157_ Med. Laser destroyed. 01164_ G-34 Mercenary destroyed. 01165_ Acquired 45 matter. 01169_ K-01 Serf collects debris. 01169_ Acquired Ion Engine. 01172_ K-01 Serf collects debris. 01173_ Acquired Ion Engine. 01174_ K-01 Serf destroyed. 01179_ Acquired 21 matter. 01186_ EXIT=FOUND 01191_ Connecting with Terminal... 01191_ ALERT: Suspicious activity at Terminal M006. Dispatching Investigation squad. 01236_ G-34 Mercenary destroyed. 01251_ Acquired 10 matter. 01285_ EXIT=FOUND: MATERIALS 01306_ Lgt. Treads destroyed. 01322_ Med. Laser destroyed. 01326_ Critical hit (Burn: +37). Map ----- +----------------------------------------------------+ | | | | | | | | | | | | | | | | | | | | | | | ?????????????????????????????????????????????????? | | ?????????????????????????????????????????????????? | | ?????????????????????????????????????????????????? | | ?????????????????????????????????????????????????? | | ?????????????????????????????????????????????????? | | ??????"""????????????????????????????????????????? | | ?????"!!!"???????????????????????????????????????? | | ???#"" ""###########??????#####????????????????? | | ???# ## #??????# #????????????????? | | ???# < ## #??????# < #????????????????? | | ???? ?# #??????# #????????????????? | | ???? ?# ######## #???????????????## | | ????? ??# # #???????????????# | | ?????# #??# # g #???????????????# | | ?????# #??# + @ g #???????????????# | | ###### #??# ######## #???????????????# | | ## #??# #??????# #???????????????# | | ! ## ##?#####+####??????# #???????????????# | | # ##### ###?##### #???????????????# | | # T % #???????????????# | | + "" #???????????###### | | # ########????# | | # ##### ######### # """ #????# "" | | ###!###???## ##???????# # """ ###### """ | | #?#%#??????# ########## # """ + # """ | | #######+######## ## # / #### # """ | | ?????#*=%= ## ## # # #??# # "" | | ?????#[ """ ## ## + # #??# # | | ?????# """"" !# # # #####+##??# # "T" | | ?????# """"" # # # #???# #???# # """ | | ?????# """"" + + [ # #???# #???# #####+ | | ?????# """ # ! # # #???# #???# #?# | | ?????# # # # ##### ##### ### | | ?????# "T" ## ## # # "" | | ?????# """ ## ## # + "" | | ?????########### ## # # "" | | ???????????????# ################# ######## % | | ???????????????# #???????????????# #??????# | | ???????????????# #???????????????# #??????#### | +----------------------------------------------------+ Best States ------------- Heat Dissipation 25 Energy Generation 10 Energy Capacity 250 Matter Stores 300 Matter Capacity 300 Sight Range 16 Terrain Scan Range 16 Terrain Scan Density 10 Evasion (%) 50 Recoil Reduction 2 Item Schematics ----------------- None Robot Schematics ------------------ None Fabricated ------------ Nothing Alien Tech Used ----------------- None Achievements -------------- None Challenges ------------ None Game ------ Seed AssaultSchematicMeganuke Manual? 0 Play Time 00:15:12 Cumulative 117.1 hours Start 2022.04.20 @ 18:44:00 End 2022.04.20 @ 18:57:46 Sessions 1 Manual Loads 0 Difficulty Rogue Special Mode None Game No. 23 Rogue 16 Adventurer 1 Explorer 6 Win Type - Total 5 Types 3/1/1/0/0/0/0/0/0 Lore% 68 Gallery% 61 Achievement% 61 Wizard Run 0 Options --------- ASCII 0 Keyboard 0 Movement Mouse Keybinds 0 Fullscreen 1 Font 18/SmallcapsGlow Map View 76x50 Tactical HUD 1 Map Filters NONE Filters NONE Steam 1 RUN: added62c-e818-4107-9e35-b551af9af370